lending/lending_fUSD_20240110
["ID","MTS","AMOUNT","RATE_DAILY","PERIOD"]
[311066789,1704891211364,-2153.22,0.00035068,2]
[311066790,1704891211374,-894.32,0.00035068,2]
[311066791,1704891211383,-1551.48,0.00035068,2]
[311066792,1704891211393,-551.86,0.00035068,2]
[311066793,1704891211404,-1823.35,0.00035068,2]
[311066794,1704891211414,-656.22,0.00035068,2]
[311066795,1704891211424,-903.93,0.00035068,2]
[311066796,1704891211433,-784.54,0.00035068,2]
[311066797,1704891211443,-1466.91,0.00035068,2]
[311066798,1704891211452,-1006.56,0.00035068,2]
[311066799,1704891211463,-1655.17,0.00035068,2]
[311066800,1704891211472,-3133.81,0.00035068,2]
[311066801,1704891211485,-761.32,0.00035068,2]
[311066802,1704891211495,-1170.77,0.00035068,2]
[311066803,1704891211504,-533.08,0.00035068,2]
[311066804,1704891211514,-1368.59,0.00035068,2]
[311066805,1704891211524,-661.49,0.00035068,2]
[311066806,1704891211533,-1618.49,0.00035068,2]
[311066807,1704891211543,-450.32620786,0.00035068,2]
[311066808,1704891211553,-8919.11,0.00035068,2]
[311066809,1704891211562,-696.22,0.00035068,2]
[311066810,1704891211572,-813.18,0.00035068,2]
[311066811,1704891211582,-916.52,0.00035068,2]
[311066812,1704891211592,-484.51,0.00035068,2]
[311066813,1704891211602,-1010.96,0.00035068,2]
[311066814,1704891211611,-669.44,0.00035068,2]
[311066815,1704891211621,-895.64,0.00035068,2]
[311066816,1704891211631,-5719.09,0.00035068,2]
[311066817,1704891211640,-3241.68,0.00035068,2]
[311066818,1704891211650,-1654.81,0.00035068,2]
[311066819,1704891211660,-2147.06,0.00035068,2]
[311066820,1704891211670,-4583.07,0.00035068,2]
[311066821,1704891211679,-4104.47,0.00035068,2]
[311066822,1704891211688,-1135.8,0.00035068,2]
[311066823,1704891211698,-4864.49,0.00035068,2]
[311066824,1704891211708,-1172.6,0.00035068,2]
[311066825,1704891211718,-1306.53,0.00035068,2]
[311066826,1704891211730,-605.42,0.00035068,2]
[311066827,1704891211740,-613.66,0.00035068,2]
[311066828,1704891211749,-3152.91,0.00035068,2]
[311066829,1704891211761,-1839.88,0.00035068,2]
[311066830,1704891211771,-848.46,0.00035068,2]
[311066831,1704891211781,-1217.95,0.00035068,2]
[311066832,1704891211790,-3087.19,0.00035068,2]
[311066833,1704891211800,-1243.05,0.00035068,2]
[311066834,1704891211809,-1107.32,0.00035068,2]
[311066835,1704891211819,-1973.9,0.00035068,2]
[311066836,1704891211828,-500.0,0.00035068,2]
[311066837,1704891211838,-500.0,0.00035068,2]
[311066838,1704891211848,-1702.03,0.00035068,2]
[311066839,1704891211857,-515.72,0.00035068,2]
[311066840,1704891211866,-998.38,0.00035068,2]
[311066841,1704891211875,-3061.74,0.00035068,2]
[311066842,1704891211884,-1068.18,0.00035068,2]
[311066843,1704891211893,-996.01,0.00035068,2]
[311066844,1704891211903,-3064.76,0.00035068,2]
[311066845,1704891211912,-1153.97,0.00035068,2]
[311066846,1704891211921,-6469.31,0.00035068,2]
[311066847,1704891211930,-500.0,0.00035068,2]
[311066848,1704891211939,-20572.41,0.00035068,2]
[311066849,1704891211949,-508.77,0.00035068,2]
[311066850,1704891211958,-1211.96,0.00035068,2]
[311066851,1704891211968,-876.85,0.00035068,2]
[311066852,1704891211978,-749.11,0.00035068,2]
[311066853,1704891211988,-1516.45,0.00035068,2]
[311066854,1704891211997,-835.36,0.00035068,2]
[311066855,1704891212007,-3428.01,0.00035068,2]
[311066856,1704891212016,-51777.21,0.00035068,2]
[311066857,1704891212026,-1411.74,0.00035068,2]
[311066858,1704891212035,-2414.62,0.00035068,2]
[311066859,1704891212045,-8935.6,0.00035068,2]
[311066860,1704891212054,-500.0,0.00035068,2]
[311066861,1704891212064,-28702.52,0.00035068,2]
[311066862,1704891212074,-1449.33,0.00035068,2]
[311066863,1704891212083,-1741.33,0.00035068,2]
[311066864,1704891212092,-729.81,0.00035068,2]
[311066865,1704891212102,-18242.51,0.00035068,2]
[311066866,1704891212111,-982.47,0.00035068,2]
[311066867,1704891212120,-3044.12,0.00035068,2]
[311066868,1704891212130,-1198.42,0.00035068,2]
[311066869,1704891212139,-7322.32,0.00035068,2]
[311066870,1704891212148,-669.65,0.00035068,2]
[311066871,1704891212158,-883.98,0.00035068,2]
[311066872,1704891212167,-936.43,0.00035068,2]
[311066873,1704891212177,-500.0,0.00035068,2]
[311066874,1704891212185,-1931.34,0.00035068,2]
[311066875,1704891212194,-5311.52,0.00035068,2]
[311066876,1704891212204,-591.04,0.00035068,2]
[311066877,1704891212213,-596.34,0.00035068,2]
[311066878,1704891212223,-1716.44,0.00035068,2]
[311066879,1704891212236,-756.46,0.00035068,2]
[311066880,1704891212246,-1935.34,0.00035068,2]
[311066881,1704891212255,-630.3,0.00035068,2]
[311066882,1704891212265,-896.69,0.00035068,2]
[311066883,1704891212275,-11436.48,0.00035068,2]
[311066884,1704891212285,-1335.68,0.00035068,2]
[311066885,1704891212295,-5273.56,0.00035068,2]
[311066886,1704891212304,-7205.25,0.00035068,2]
[311066887,1704891212313,-738.84,0.00035068,2]
[311066888,1704891212323,-1192.7,0.00035068,2]
[311066889,1704891212333,-962.89,0.00035068,2]
[311066890,1704891212346,-717.02,0.00035068,2]
[311066891,1704891212356,-1285.43,0.00035068,2]
[311066892,1704891212366,-6876.74,0.00035068,2]
[311066893,1704891212376,-1732.97,0.00035068,2]
[311066894,1704891212387,-2245.33,0.00035068,2]
[311066895,1704891212396,-1567.49,0.00035068,2]
[311066896,1704891212406,-790.0,0.00035068,2]
[311066897,1704891212415,-2499.19,0.00035068,2]
[311066898,1704891212425,-932.57,0.00035068,2]
[311066899,1704891212435,-6606.78,0.00035068,2]
[311066900,1704891212445,-2921.42,0.00035068,2]
[311066901,1704891212455,-783.63,0.00035068,2]
[311066902,1704891212464,-4128.32,0.00035068,2]
[311066903,1704891212475,-500.0,0.00035068,2]
[311066904,1704891212487,-7057.36,0.00035068,2]
[311066905,1704891212496,-682.44,0.00035068,2]
[311066906,1704891212506,-1293.22,0.00035068,2]
[311066907,1704891212515,-1047.14,0.00035068,2]
[311066908,1704891212525,-3328.34,0.00035068,2]
[311066909,1704891212534,-2896.37,0.00035068,2]
[311066910,1704891212545,-668.72,0.00035068,2]
[311066911,1704891212555,-3025.67,0.00035068,2]
[311066912,1704891212565,-1350.56,0.00035068,2]
[311066913,1704891212574,-2341.12,0.00035068,2]
[311066914,1704891212583,-953.47,0.00035068,2]
[311066915,1704891212592,-2098.62,0.00035068,2]
[311066916,1704891212602,-703.2,0.00035068,2]
[311066917,1704891212611,-1930.74,0.00035068,2]
[311066918,1704891212620,-5339.67,0.00035068,2]
[311066919,1704891212629,-503.67,0.00035068,2]
[311066920,1704891212638,-4486.53,0.00035068,2]
[311066921,1704891212648,-2153.92,0.00035068,2]
[311066922,1704891212657,-1333.7,0.00035068,2]
[311066923,1704891212666,-1093.38,0.00035068,2]
[311066924,1704891212675,-3990.83,0.00035068,2]
[311066925,1704891212684,-3222.77,0.00035068,2]
[311066926,1704891212694,-843.02,0.00035068,2]
[311066927,1704891212703,-915.67,0.00035068,2]
[311066928,1704891212712,-551.12530833,0.00035068,2]
[311066929,1704891212721,-6104.89,0.00035068,2]
[311066930,1704891212733,-723.37,0.00035068,2]
[311066931,1704891212742,-1149.9,0.00035068,2]
[311066932,1704891212752,-5798.03,0.00035068,2]
[311066933,1704891212761,-4625.49,0.00035068,2]
[311066934,1704891212772,-550.5,0.00035068,2]
[311066935,1704891212781,-1882.58,0.00035068,2]
[311066936,1704891212791,-13391.47,0.00035068,2]
[311066937,1704891212800,-1438.47,0.00035068,2]
[311066938,1704891212810,-17056.02,0.00035068,2]
[311066939,1704891212819,-1223.46,0.00035068,2]
[311066940,1704891212828,-3391.89,0.00035068,2]
[311066941,1704891212837,-1903.64,0.00035068,2]
[311066942,1704891212847,-535.17,0.00035068,2]
[311066943,1704891212856,-1447.74,0.00035068,2]
[311066944,1704891212866,-500.0,0.00035068,2]
[311066945,1704891212875,-903.74,0.00035068,2]
[311066946,1704891212884,-1181.32,0.00035068,2]
[311066947,1704891212894,-3416.68,0.00035068,2]
[311066948,1704891212903,-897.9,0.00035068,2]
[311066949,1704891212913,-1323.99,0.00035068,2]
[311066950,1704891212922,-605.66,0.00035068,2]
[311066951,1704891212931,-2647.12,0.00035068,2]
[311066952,1704891212940,-934.490745,0.00035068,2]
[311066953,1704891213793,-306.099255,0.00035068,2]
[311066954,1704891213804,-623.7277219,0.00035068,2]
[311066955,1704891213817,-442.2722781,0.00035068,2]
[311066956,1704891213827,-3383.46,0.00035068,2]
[311066957,1704891213837,-1858.38,0.00035068,2]
[311066958,1704891213846,-2765.04,0.00035068,2]
[311066959,1704891213856,-556.19,0.00035068,2]
[311066960,1704891213866,-656.06,0.00035068,2]
[311066961,1704891213876,-1414.02,0.00035068,2]
[311066962,1704891213887,-1721.84,0.00035068,2]
[311066963,1704891213897,-6948.27,0.00035068,2]
[311066964,1704891213907,-500.0,0.00035068,2]
[311066965,1704891213917,-787.87,0.00035068,2]
[311066966,1704891213927,-1113.97,0.00035068,2]
[311066967,1704891213937,-1850.44,0.00035068,2]
[311066968,1704891213947,-875.41,0.00035068,2]
[311066969,1704891213957,-622.97,0.00035068,2]
[311066970,1704891213967,-975.55,0.00035068,2]
[311066971,1704891213977,-2699.57,0.00035068,2]
[311066972,1704891213992,-13325.5,0.00035068,2]
[311066973,1704891214003,-816.51,0.00035068,2]
[311066974,1704891214014,-506.73,0.00035068,2]
[311066975,1704891214025,-905.55,0.00035068,2]
[311066976,1704891214035,-602.85,0.00035068,2]
[311066977,1704891214046,-1571.82,0.00035068,2]
[311066978,1704891214057,-1172.85,0.00035068,2]
[311066979,1704891214069,-1103.19,0.00035068,2]
[311066980,1704891214080,-1902.92,0.00035068,2]
[311066981,1704891214091,-551.04,0.00035068,2]
[311066982,1704891214103,-719.09,0.00035068,2]
[311066983,1704891214113,-500.0,0.00035068,2]
[311066984,1704891214123,-4042.49,0.00035068,2]
[311066985,1704891214133,-711.14,0.00035068,2]
[311066986,1704891214144,-1029.72,0.00035068,2]
[311066987,1704891214155,-816.66,0.00035068,2]
[311066988,1704891214166,-750.11,0.00035068,2]
[311066989,1704891214177,-6582.51,0.00035068,2]
[311066990,1704891214188,-548.8,0.00035068,2]
[311066991,1704891214199,-1032.31,0.00035068,2]
[311066992,1704891214209,-3983.8,0.00035068,2]
[311066993,1704891214221,-541.81,0.00035068,2]
[311066994,1704891214235,-3093.35581174,0.00035068,2]
[311066995,1704891214249,-413.58418826,0.00035068,2]
[311066996,1704891214260,-1408.06,0.00035068,2]
[311066997,1704891214271,-1081.29,0.00035068,2]
[311066998,1704891214282,-1527.61,0.00035068,2]
[311066999,1704891214293,-4590.95581174,0.00035068,2]
[311067000,1704891214306,-2032.5,0.00035068,2]
[311067001,1704891214323,-2162.39418826,0.00035068,2]
[311067002,1704891214333,-660.7,0.00035068,2]
[311067003,1704891214346,-2768.41,0.00035068,2]
[311067004,1704891214356,-1638.47706174,0.00035068,2]
[311067005,1704891214383,-1219.98293826,0.00035068,2]
[311067006,1704891214394,-2292.41,0.00035068,2]
[311067007,1704891214404,-746.91,0.00035068,2]
[311067008,1704891214415,-485.24206176,0.00035068,2]
[311067009,1704891214430,-650.0,0.00035068,2]
[311067010,1704891214538,-500.0,0.00030136,2]
[311067011,1704891214550,-782.89966607,0.0003041,2]
[311067012,1704891214563,-2.36033393,0.0003041,2]
[311067013,1704891214575,-322.14360328,0.0003178,2]
[311067014,1704891214589,-385.7862588,0.0003178,2]
[311067015,1704891214605,-779.59013792,0.0003178,2]
[311067016,1704891214617,-854.64,0.00032054,2]
[311067017,1704891214629,-4708.93,0.00032328,2]
[311067018,1704891214641,-2996.14793824,0.00035068,2]
[311067019,1704891214653,-2876.26,0.00035068,2]
[311067020,1704891214663,-2170.96,0.00035068,2]
[311067021,1704891214674,-2634.97,0.00035068,2]
[311067022,1704891214686,-1142.75,0.00035068,2]
[311067023,1704891214697,-1716.45,0.00035068,2]
[311067024,1704891214710,-1039.47,0.00035068,2]
[311067025,1704891214721,-3670.86,0.00035068,2]
[311067026,1704891214737,-602.26,0.00035068,2]
[311067027,1704891214748,-614.41,0.00035068,2]
[311067028,1704891214759,-1673.5,0.00035068,2]
[311067029,1704891214769,-2195.0,0.00035068,2]
[311067030,1704891214780,-2390.42,0.00035068,2]
[311067031,1704891214791,-3651.48,0.00035068,2]
[311067032,1704891214802,-5390.38,0.00035068,2]
[311067033,1704891214813,-38163.08,0.00035068,2]
[311067034,1704891214824,-500.0,0.00035068,2]
[311067035,1704891214835,-1305.31,0.00035068,2]
[311067036,1704891214845,-1396.89,0.00035068,2]
[311067037,1704891214855,-1467.77,0.00035068,2]
[311067038,1704891214866,-1697.53,0.00035068,2]
[311067039,1704891214876,-14627.59,0.00035068,2]
[311067040,1704891214887,-2605.66,0.00035068,2]
[311067041,1704891214897,-1698.7,0.00035068,2]
[311067042,1704891214907,-601.21,0.00035068,2]
[311067043,1704891214917,-500.0,0.00035068,2]
[311067044,1704891214927,-3381.31,0.00035068,2]
[311067045,1704891214937,-3094.77,0.00035068,2]
[311067046,1704891214948,-999.48,0.00035068,2]
[311067047,1704891214959,-21762.22192427,0.00035068,2]
[311067048,1704891214972,-1352.6025662,0.00035068,2]
[311067049,1704891214987,-7875.32550953,0.00035068,2]
[311067050,1704891214997,-607.81,0.00035068,2]
[311067051,1704891215008,-2892.8,0.00035068,2]
[311067052,1704891215020,-5290.12,0.00035068,2]
[311067053,1704891215030,-1578.38,0.00035068,2]
[311067054,1704891215041,-2017.0,0.00035068,2]
[311067055,1704891215053,-840.86,0.00035068,2]
[311067056,1704891215064,-4827.58,0.00035068,2]
[311067057,1704891215075,-3994.86,0.00035068,2]
[311067058,1704891215085,-500.0,0.00035068,2]
[311067059,1704891215096,-1048.25,0.00035068,2]
[311067060,1704891215106,-642.94,0.00035068,2]
[311067061,1704891215117,-1904.14,0.00035068,2]
[311067062,1704891215129,-500.0,0.00035068,2]
[311067063,1704891215139,-539.92,0.00035068,2]
[311067064,1704891215150,-1424.2,0.00035068,2]
[311067065,1704891215161,-1050.78,0.00035068,2]
[311067066,1704891215172,-2602.05,0.00035068,2]
[311067067,1704891215182,-500.0,0.00035068,2]
[311067068,1704891215193,-5503.03,0.00035068,2]
[311067069,1704891215204,-1522.78,0.00035068,2]
[311067070,1704891215215,-2260.26,0.00035068,2]
[311067071,1704891215226,-753.71,0.00035068,2]
[311067072,1704891215241,-821.97,0.00035068,2]
[311067073,1704891215252,-901.27,0.00035068,2]
[311067074,1704891215264,-1838.58,0.00035068,2]
[311067075,1704891215275,-6384.72,0.00035068,2]
[311067076,1704891215286,-627.49,0.00035068,2]
[311067077,1704891215297,-599.02,0.00035068,2]
[311067078,1704891215308,-248.33811659,0.00035068,2]
[311067079,1704891215319,-632.63,0.00035068,2]
[311067080,1704891215330,-2196.77,0.00035068,2]
[311067081,1704891215342,-782.96,0.00035068,2]
[311067082,1704891215354,-864.41,0.00035068,2]
[311067083,1704891215365,-2505.88,0.00035068,2]
[311067084,1704891215376,-1516.0,0.00035068,2]
[311067085,1704891215388,-1765.01,0.00035068,2]
[311067086,1704891215400,-6045.31,0.00035068,2]
[311067087,1704891215411,-720.09,0.00035068,2]
[311067088,1704891215422,-3365.53,0.00035068,2]
[311067089,1704891215433,-870.91,0.00035068,2]
[311067090,1704891215444,-927.81,0.00035068,2]
[311067091,1704891215456,-2120.01,0.00035068,2]
[311067092,1704891215467,-868.01,0.00035068,2]
[311067093,1704891215478,-1570.4,0.00035068,2]
[311067094,1704891215494,-767.25,0.00035068,2]
[311067095,1704891215506,-2584.72,0.00035068,2]
[311067096,1704891215517,-5200.93,0.00035068,2]
[311067097,1704891215528,-1551.81,0.00035068,2]
[311067098,1704891215540,-1450.1,0.00035068,2]
[311067099,1704891215552,-602.13,0.00035068,2]
[311067100,1704891215563,-754.64,0.00035068,2]
[311067101,1704891215575,-3512.62,0.00035068,2]
[311067102,1704891215586,-1650.34,0.00035068,2]
[311067103,1704891215598,-813.75,0.00035068,2]
[311067104,1704891215610,-2261.23,0.00035068,2]
[311067105,1704891215621,-1006.944803,0.000352,5]
[311067106,1704891215632,-1710.794788,0.000352,2]
[311067107,1704891215643,-153.84,0.00035202,2]
[311067108,1704891215654,-248.54946928,0.00035216,2]
[311067109,1704891215668,-1000.0,0.00035219,2]
[311067110,1704891215689,-2048.0,0.00035234,5]
[311067111,1704891215714,-500.0,0.00035237,2]
[311067112,1704891215739,-1847.3771527,0.00035318,2]
[311067113,1704891215762,-1918.1684378,0.00035318,2]
[311067114,1704891215785,-161001.1417389,0.00035318,2]
[311067115,1704891215808,-150.0,0.00035341,2]
[311067116,1704891215830,-1305.2,0.00035342,2]
[311067117,1704891215855,-1164.78,0.00035342,2]
[311067118,1704891215865,-632.81,0.00035342,2]
[311067119,1704891215877,-691.12,0.00035342,2]
[311067120,1704891215888,-610.62,0.00035342,2]
[311067121,1704891215900,-570.49,0.00035342,2]
[311067122,1704891215910,-648.06,0.00035342,2]
[311067123,1704891215921,-528.22,0.00035342,2]
[311067124,1704891215932,-613.28,0.00035342,2]
[311067125,1704891215944,-606.62,0.00035342,2]
[311067126,1704891215956,-1296.75,0.00035342,2]
[311067127,1704891215967,-549.61,0.00035342,2]
[311067128,1704891215979,-539.9,0.00035342,2]
[311067129,1704891215996,-500.0,0.00035342,2]
[311067130,1704891216012,-554.24,0.00035342,2]
[311067131,1704891216024,-604.42,0.00035342,2]
[311067132,1704891216036,-500.0,0.00035342,2]
[311067133,1704891216049,-597.45,0.00035342,2]
[311067134,1704891216061,-715.45,0.00035342,2]
[311067135,1704891216073,-731.09,0.00035342,2]
[311067136,1704891216086,-500.0,0.00035342,2]
[311067137,1704891216097,-767.17,0.00035342,2]
[311067138,1704891216320,-1110.47,0.00035342,2]
[311067139,1704891216332,-167477.922075,0.00035342,2]
[311067140,1704891216346,-500.0,0.00035342,2]
[311067141,1704891216736,-914.12,0.00035342,2]
[311067142,1704891216762,-843.45,0.00035342,2]
[311067143,1704891216781,-540.71,0.00035342,2]
[311067144,1704891216792,-833.64,0.00035342,2]
[311067145,1704891216802,-919.36,0.00035342,2]
[311067146,1704891216813,-500.0,0.00035342,2]
[311067147,1704891216823,-780.81,0.00035342,4]
[311067148,1704891216833,-673.2,0.00035342,2]
[311067149,1704891216844,-549.17,0.00035342,2]
[311067150,1704891216855,-592.78,0.00035342,10]
[311067151,1704891216866,-929.48,0.00035342,2]
[311067152,1704891216877,-500.0,0.00035342,2]
[311067153,1704891216888,-783.37,0.00035342,2]
[311067154,1704891216900,-327.07503441,0.00035342,2]
[311067155,1704891216911,-526.95,0.00035342,2]
[311067156,1704891216922,-796.39,0.00035342,2]
[311067157,1704891216934,-718.34,0.00035342,2]
[311067158,1704891216944,-500.0,0.00035342,2]
[311067159,1704891216955,-516.97,0.00035342,2]
[311067160,1704891216966,-603.93,0.00035342,2]
[311067161,1704891216977,-953.36,0.00035342,2]
[311067162,1704891216992,-595.36,0.00035342,2]
[311067163,1704891217003,-999.87,0.00035342,2]
[311067164,1704891217014,-799.61,0.00035342,2]
[311067165,1704891217024,-500.0,0.00035342,2]
[311067166,1704891217035,-545.66,0.00035342,2]
[311067167,1704891217046,-911.61,0.00035342,2]
[311067168,1704891217056,-608.6,0.00035342,2]
[311067169,1704891217066,-679.43,0.00035342,2]
[311067170,1704891217077,-500.0,0.00035342,2]
[311067171,1704891217087,-528.0,0.00035342,2]
[311067172,1704891217098,-717.61,0.00035342,2]
[311067173,1704891217108,-668.27,0.00035342,2]
[311067174,1704891217120,-500.0,0.00035342,2]
[311067175,1704891217130,-922.19,0.00035342,2]
[311067176,1704891217141,-500.0,0.00035342,2]
[311067177,1704891217152,-500.0,0.00035342,2]
[311067178,1704891217163,-1150.48,0.00035342,2]
[311067179,1704891217174,-856.23,0.00035342,2]
[311067180,1704891217185,-943.83,0.00035342,2]
[311067181,1704891217196,-677.16,0.00035342,2]
[311067182,1704891217207,-1357.7,0.00035342,2]
[311067183,1704891217218,-944.54,0.00035342,2]
[311067184,1704891217229,-819.95,0.00035342,2]
[311067185,1704891217244,-613.7,0.00035342,2]
[311067186,1704891217256,-845.23,0.00035342,2]
[311067187,1704891217267,-1144.78,0.00035342,2]
[311067188,1704891217278,-500.0,0.00035342,2]
[311067189,1704891217289,-572.57,0.00035342,2]
[311067190,1704891217300,-523.04,0.00035342,2]
[311067191,1704891217311,-500.0,0.00035342,2]
[311067192,1704891217322,-500.0,0.00035342,2]
[311067193,1704891217332,-981.88,0.00035342,2]
[311067194,1704891217345,-1009.3,0.00035342,2]
[311067195,1704891217357,-804.49,0.00035342,2]
[311067196,1704891217367,-242.63929543,0.00035342,2]
[311067197,1704891217378,-679.35,0.00035342,2]
[311067198,1704891217388,-626.97,0.00035342,2]
[311067199,1704891217400,-688.65,0.00035342,2]
[311067200,1704891217411,-1228.41,0.00035342,2]
[311067201,1704891217422,-835.39,0.00035342,2]
[311067202,1704891217433,-567.03,0.00035342,2]
[311067203,1704891217445,-664.11,0.00035342,2]
[311067204,1704891217457,-699.18,0.00035342,2]
[311067205,1704891217468,-574.64,0.00035342,2]
[311067206,1704891217479,-729.83,0.00035342,2]
[311067207,1704891217492,-847.62,0.00035342,2]
[311067208,1704891217504,-1277.67,0.00035342,2]
[311067209,1704891217514,-755.08,0.00035342,2]
[311067210,1704891217526,-1281.13,0.00035342,2]
[311067211,1704891217537,-1050.74,0.00035342,2]
[311067212,1704891217549,-1129.59,0.00035342,2]
[311067213,1704891217561,-1299.52,0.00035342,2]
[311067214,1704891217572,-667.72,0.00035342,2]
[311067215,1704891217584,-665.14,0.00035342,2]
[311067216,1704891217595,-528.75904715,0.00035342,2]
[311067217,1704891217606,-1462.15,0.00035342,2]
[311067218,1704891217617,-883.1,0.00035342,2]
[311067219,1704891217628,-736.72,0.00035342,2]
[311067220,1704891217639,-932.0,0.00035342,2]
[311067221,1704891217651,-933.85,0.00035342,2]
[311067222,1704891217661,-597.10837665,0.00035342,2]
[311067223,1704891217672,-715.55,0.00035342,2]
[311067224,1704891217683,-616.84,0.00035342,2]
[311067225,1704891217693,-1106.31,0.00035342,2]
[311067226,1704891217704,-989.02,0.00035342,2]
[311067227,1704891217716,-500.0,0.00035342,2]
[311067228,1704891217727,-1195.8,0.00035342,2]
[311067229,1704891217744,-1108.12,0.00035342,2]
[311067230,1704891217756,-1806.82,0.00035342,2]
[311067231,1704891217767,-915.35,0.00035342,2]
[311067232,1704891217779,-1387.71,0.00035342,2]
[311067233,1704891217791,-778.7,0.00035342,2]
[311067234,1704891217802,-1503.57,0.00035342,2]
[311067235,1704891217813,-1262.12,0.00035342,2]
[311067236,1704891217825,-556.89,0.00035342,2]
[311067237,1704891217836,-728.24,0.00035342,2]
[311067238,1704891217848,-749.59,0.00035342,2]
[311067239,1704891217859,-968.99,0.00035342,2]
[311067240,1704891217870,-500.0,0.00035342,2]
[311067241,1704891217881,-1148.53,0.00035342,2]
[311067242,1704891217893,-1486.97,0.00035342,2]
[311067243,1704891217905,-1273.18,0.00035342,2]
[311067244,1704891217918,-500.0,0.00035342,2]
[311067245,1704891217929,-1334.19,0.00035342,2]
[311067246,1704891217940,-810.04,0.00035342,2]
[311067247,1704891217951,-945.46,0.00035342,2]
[311067248,1704891217964,-884.9,0.00035342,2]
[311067249,1704891217976,-566.84,0.00035342,2]
[311067250,1704891217994,-500.0,0.00035342,2]
[311067251,1704891218006,-659.65,0.00035342,2]
[311067252,1704891218017,-1698.48,0.00035342,2]
[311067253,1704891218029,-1658.69,0.00035342,2]
[311067254,1704891218040,-1894.62,0.00035342,2]
[311067255,1704891218051,-530.43,0.00035342,2]
[311067256,1704891218062,-648.28,0.00035342,2]
[311067257,1704891218074,-635.25,0.00035342,2]
[311067258,1704891218085,-716.26,0.00035342,2]
[311067259,1704891218096,-500.0,0.00035342,2]
[311067260,1704891218107,-1075.0,0.00035342,2]
[311067261,1704891218118,-659.2,0.00035342,2]
[311067262,1704891218129,-912.69,0.00035342,2]
[311067263,1704891218140,-994.89,0.00035342,2]
[311067264,1704891218151,-536.25,0.00035342,2]
[311067265,1704891218162,-763.92,0.00035342,2]
[311067266,1704891218173,-535.04,0.00035342,2]
[311067267,1704891218183,-1507.5,0.00035342,2]
[311067268,1704891218193,-1352.86,0.00035342,2]
[311067269,1704891218204,-763.85,0.00035342,2]
[311067270,1704891218214,-500.0,0.00035342,2]
[311067271,1704891218225,-1058.85,0.00035342,2]
[311067272,1704891218238,-592.06,0.00035342,2]
[311067273,1704891218248,-1144.7,0.00035342,2]
[311067274,1704891218258,-500.0,0.00035342,2]
[311067275,1704891218269,-500.0,0.00035342,2]
[311067276,1704891218280,-960.45,0.00035342,2]
[311067277,1704891218290,-1268.39,0.00035342,2]
[311067278,1704891218300,-1187.57,0.00035342,2]
[311067279,1704891218310,-982.41,0.00035342,2]
[311067280,1704891218320,-1176.82,0.00035342,2]
[311067281,1704891218330,-1591.28,0.00035342,2]
[311067282,1704891218340,-982.23,0.00035342,2]
[311067283,1704891218353,-960.81,0.00035342,2]
[311067284,1704891218363,-1435.01,0.00035342,2]
[311067285,1704891218374,-1207.08,0.00035342,2]
[311067286,1704891218384,-1012.64,0.00035342,2]
[311067287,1704891218395,-1395.58,0.00035342,2]
[311067288,1704891218406,-1128.18,0.00035342,2]